fUST/lending_fUST_20260422
["ID","MTS","AMOUNT","RATE_DAILY","PERIOD"]
[420976679,1776841774086,-150.14139026,0.00025008,120]
[420976680,1776841774124,-640.01940529,0.00025008,120]
[420976681,1776841774162,-500.0,0.00025008,120]
[420976682,1776841774200,-500.0,0.00025008,120]
[420976683,1776841774238,-500.0,0.00025008,120]
[420976684,1776841774275,-500.0,0.00025008,120]
[420976685,1776841774311,-453.61,0.00025008,120]
[420976686,1776841774349,-501.86677015,0.00025008,120]
[420976687,1776841774385,-500.0,0.00025008,120]
[420976688,1776841774422,-501.17616419,0.00025008,120]
[420976689,1776841774459,-715.64,0.00025008,120]
[420976690,1776841774496,-715.64,0.00025008,120]
[420976691,1776841774532,-715.64,0.00025008,120]
[420976692,1776841774570,-715.64,0.00025008,120]
[420976693,1776841774608,-715.64,0.00025008,120]
[420976694,1776841774646,-715.64,0.00025008,120]
[420976695,1776841774685,-715.64,0.00025008,120]
[420976696,1776841774723,-715.64,0.00025008,120]
[420976697,1776841774762,-715.74,0.00025008,120]
[420976698,1776841774801,-500.0,0.00025008,120]
[420976699,1776841774840,-500.86113403,0.00025008,120]
[420976700,1776841774879,-500.0,0.00025008,120]
[420976701,1776841774917,-500.77496614,0.00025008,120]
[420976702,1776841774955,-500.0,0.00025008,120]
[420976703,1776841774992,-503.72147033,0.00025008,120]
[420976704,1776841775031,-500.0,0.00025008,120]
[420976705,1776841775069,-501.24087043,0.00025008,120]
[420976706,1776841775106,-500.0,0.00025008,120]
[420976707,1776841775144,-500.0,0.00025008,120]
[420976708,1776841775182,-500.0,0.00025008,120]
[420976709,1776841775221,-500.0,0.00025008,120]
[420976710,1776841775260,-170.90596389,0.00025008,120]
[420976711,1776841775297,-500.44495334,0.00025008,120]
[420976712,1776841775335,-500.0,0.00025008,120]
[420976713,1776841775372,-503.20539948,0.00025008,120]
[420976714,1776841775410,-500.0,0.00025008,120]
[420976715,1776841775448,-500.0,0.00025008,120]
[420976716,1776841775486,-500.0,0.00025008,120]
[420976717,1776841775524,-500.0,0.00025008,120]
[420976718,1776841775562,-500.0,0.00025008,120]
[420976719,1776841775601,-500.0,0.00025008,120]
[420976720,1776841775639,-500.0,0.00025008,120]
[420976721,1776841775677,-500.0,0.00025008,120]
[420976722,1776841775716,-500.0,0.00025008,120]
[420976723,1776841775755,-640.92497222,0.00025008,120]
[420976724,1776841775793,-531.70142811,0.00025008,120]
[420976725,1776841775830,-500.0,0.00025008,120]
[420976726,1776841775869,-501.41411775,0.00025008,120]
[420976727,1776841775907,-500.0,0.00025008,120]
[420976728,1776841775944,-503.23509951,0.00025008,120]
[420976729,1776841775983,-500.0,0.00025008,120]
[420976730,1776841776021,-502.76384807,0.00025008,120]
[420976731,1776841776060,-500.0,0.00025008,120]
[420976732,1776841776098,-500.0,0.00025008,120]
[420976733,1776841776136,-500.0,0.00025008,120]
[420976734,1776841776173,-500.85829572,0.00025008,120]
[420976735,1776841776211,-501.0844103,0.00025008,120]
[420976736,1776841776248,-500.0,0.00025008,120]
[420976737,1776841776415,-503.08801197,0.00025008,120]
[420976738,1776841776455,-505.32633488,0.00025008,120]
[420976739,1776841776494,-500.0,0.00025008,120]
[420976740,1776841776533,-500.0,0.00025008,120]
[420976741,1776841776571,-500.0,0.00025008,120]
[420976742,1776841776608,-500.0,0.00025008,120]
[420976743,1776841776646,-500.0,0.00025008,120]
[420976744,1776841776685,-500.0,0.00025008,120]
[420976745,1776841776725,-500.0,0.00025008,120]
[420976746,1776841776764,-500.0,0.00025008,120]
[420976747,1776841776803,-500.0,0.00025008,120]
[420976748,1776841776841,-500.0,0.00025008,120]
[420976749,1776841776881,-500.0,0.00025008,120]
[420976750,1776841776919,-500.0,0.00025008,120]
[420976751,1776841776961,-500.0,0.00025008,120]
[420976752,1776841777001,-500.0,0.00025008,120]
[420976753,1776841777045,-510.61618876,0.00025008,120]
[420976754,1776841777089,-500.0,0.00025008,120]
[420976755,1776841777133,-500.0,0.00025008,120]
[420976756,1776841777176,-500.0,0.00025008,120]
[420976757,1776841777219,-500.0,0.00025008,120]
[420976758,1776841777262,-500.0,0.00025008,120]
[420976759,1776841777306,-500.0,0.00025008,120]
[420976760,1776841777353,-500.0,0.00025008,120]
[420976761,1776841777397,-214.24,0.00025008,120]
[420976762,1776841777439,-500.0,0.00025008,120]
[420976763,1776841777481,-500.0,0.00025008,120]
[420976764,1776841777522,-500.0,0.00025008,120]
[420976765,1776841777565,-500.0,0.00025008,120]
[420976766,1776841777607,-500.0,0.00025008,120]
[420976767,1776841777648,-301.34444774,0.00025008,120]
[420976768,1776841777690,-500.0,0.00025008,120]
[420976769,1776841777733,-534.45043589,0.00025008,120]
[420976770,1776841777774,-500.0,0.00025008,120]
[420976771,1776841777816,-500.0,0.00025008,120]
[420976772,1776841777858,-500.0,0.00025008,120]
[420976773,1776841777899,-500.0,0.00025008,120]
[420976774,1776841777941,-500.0,0.00025008,120]
[420976775,1776841777982,-500.0,0.00025008,120]
[420976776,1776841778021,-500.0,0.00025008,120]
[420976777,1776841778062,-500.0,0.00025008,120]
[420976778,1776841778101,-500.0,0.00025008,120]
[420976779,1776841778140,-500.0,0.00025008,120]
[420976780,1776841778177,-500.0,0.00025008,120]
[420976781,1776841778214,-500.0,0.00025008,120]
[420976782,1776841778252,-500.0,0.00025008,120]
[420976783,1776841778289,-500.0,0.00025008,120]
[420976784,1776841778325,-500.0,0.00025008,120]
[420976785,1776841778362,-500.0,0.00025008,120]
[420976786,1776841778399,-500.0,0.00025008,120]
[420976787,1776841778436,-500.0,0.00025008,120]
[420976788,1776841778473,-500.0,0.00025008,120]
[420976789,1776841778511,-500.0,0.00025008,120]
[420976790,1776841778548,-500.0,0.00025008,120]
[420976791,1776841778586,-500.0,0.00025008,120]
[420976792,1776841778624,-500.0,0.00025008,120]
[420976793,1776841778665,-500.0,0.00025008,120]
[420976794,1776841778705,-500.0,0.00025008,120]
[420976795,1776841778744,-455.23203679,0.00025008,120]
[420976796,1776841778782,-500.0,0.00025008,120]
[420976797,1776841778819,-500.0,0.00025008,120]
[420976798,1776841778857,-500.0,0.00025008,120]
[420976799,1776841778895,-500.0,0.00025008,120]
[420976800,1776841778934,-500.0,0.00025008,120]
[420976801,1776841778974,-500.0,0.00025008,120]
[420976802,1776841779012,-596.21,0.00025008,120]
[420976803,1776841779050,-500.0,0.00025008,120]
[420976804,1776841779088,-500.0,0.00025008,120]
[420976805,1776841779126,-500.0,0.00025008,120]
[420976806,1776841779164,-500.0,0.00025008,120]
[420976807,1776841779201,-500.0,0.00025008,120]
[420976808,1776841779241,-500.0,0.00025008,120]
[420976809,1776841779278,-500.0,0.00025008,120]
[420976810,1776841779316,-500.0,0.00025008,120]
[420976811,1776841779354,-500.0,0.00025008,120]
[420976812,1776841779391,-501.2891958,0.00025008,120]
[420976813,1776841779428,-500.0,0.00025008,120]
[420976814,1776841779467,-500.0,0.00025008,120]
[420976815,1776841779507,-500.0,0.00025008,120]
[420976816,1776841779546,-500.0,0.00025008,120]
[420976817,1776841779587,-500.0,0.00025008,120]
[420976818,1776841779627,-184.46,0.00025008,120]
[420976819,1776841779666,-212.49850439,0.00025008,120]
[420976820,1776841779706,-500.0,0.00025008,120]
[420976821,1776841779867,-500.0,0.00025008,120]
[420976822,1776841779915,-500.0,0.00025008,120]
[420976823,1776841779957,-311.38115861,0.00025008,120]
[420976824,1776841779998,-195.75628329,0.00025008,120]
[420976825,1776841780038,-561.59911693,0.00025008,120]
[420976826,1776841780077,-500.0,0.00025008,120]
[420976827,1776841780115,-501.16989083,0.00025008,120]
[420976828,1776841780153,-500.0,0.00025008,120]
[420976829,1776841780191,-622.6191809,0.00025008,120]
[420976830,1776841780229,-500.0,0.00025008,120]
[420976831,1776841780268,-500.0,0.00025008,120]
[420976832,1776841780308,-500.0,0.00025008,120]
[420976833,1776841780348,-504.68934542,0.00025008,120]
[420976834,1776841780388,-500.0,0.00025008,120]
[420976835,1776841780426,-444.44894853,0.00025008,120]
[420976836,1776841780463,-500.0,0.00025008,120]
[420976837,1776841780502,-500.0,0.00025008,120]
[420976838,1776841780541,-500.0,0.00025008,120]
[420976839,1776841780578,-500.0,0.00025008,120]
[420976840,1776841780617,-464.18962074,0.00025008,120]
[420976841,1776841780655,-500.0,0.00025008,120]
[420976842,1776841780694,-506.12127512,0.00025008,120]
[420976843,1776841780734,-335.70130364,0.00025008,120]
[420976844,1776841780774,-500.0,0.00025008,120]
[420976845,1776841780814,-500.89251067,0.00025008,120]
[420976846,1776841780855,-500.0,0.00025008,120]
[420976847,1776841780894,-626.51553339,0.00025008,120]
[420976848,1776841780935,-450.41898571,0.00025008,120]
[420976849,1776841780974,-500.0,0.00025008,120]
[420976850,1776841781012,-500.0,0.00025008,120]
[420976851,1776841781050,-500.0,0.00025008,120]
[420976852,1776841781088,-326.26629152,0.00025008,120]
[420976853,1776841781126,-500.0,0.00025008,120]
[420976854,1776841781164,-504.62341325,0.00025008,120]
[420976855,1776841781202,-500.0,0.00025008,120]
[420976856,1776841781239,-501.4385887,0.00025008,120]
[420976857,1776841781277,-500.0,0.00025008,120]
[420976858,1776841781315,-501.36909129,0.00025008,120]
[420976859,1776841781352,-500.0,0.00025008,120]
[420976860,1776841781390,-605.94361131,0.00025008,120]
[420976861,1776841781427,-500.0,0.00025008,120]
[420976862,1776841781463,-500.0,0.00025008,120]
[420976863,1776841781501,-500.0,0.00025008,120]
[420976864,1776841781538,-500.0,0.00025008,120]
[420976865,1776841781576,-253.36712668,0.00025008,120]
[420976866,1776841781614,-500.0,0.00025008,120]
[420976867,1776841781652,-500.0,0.00025008,120]
[420976868,1776841781691,-500.0,0.00025008,120]
[420976869,1776841781730,-500.0,0.00025008,120]
[420976870,1776841781769,-500.0,0.00025008,120]
[420976871,1776841781809,-500.0,0.00025008,120]
[420976872,1776841781848,-500.0,0.00025008,120]
[420976873,1776841781886,-500.0,0.00025008,120]
[420976874,1776841781924,-500.0,0.00025008,120]
[420976875,1776841781963,-503.56685144,0.00025008,120]
[420976876,1776841782000,-258.94065041,0.00025008,120]
[420976877,1776841782038,-500.0,0.00025008,120]
[420976878,1776841782075,-500.0,0.00025008,120]
[420976879,1776841782112,-500.0,0.00025008,120]
[420976880,1776841782148,-255.86921656,0.00025008,120]
[420976881,1776841782183,-500.0,0.00025008,120]
[420976882,1776841782219,-500.0,0.00025008,120]
[420976883,1776841782255,-500.0,0.00025008,120]
[420976884,1776841782291,-512.23005851,0.00025008,120]
[420976885,1776841782327,-400.55324792,0.00025008,120]
[420976886,1776841782363,-500.0,0.00025008,120]
[420976887,1776841782400,-500.0,0.00025008,120]
[420976888,1776841782435,-500.0,0.00025008,120]
[420976889,1776841782472,-500.0,0.00025008,120]
[420976890,1776841782508,-568.08041545,0.00025008,120]
[420976891,1776841782544,-500.0,0.00025008,120]
[420976892,1776841782581,-500.0,0.00025008,120]
[420976893,1776841782617,-500.0,0.00025008,120]
[420976894,1776841782655,-500.0,0.00025008,120]
[420976895,1776841782693,-500.0,0.00025008,120]
[420976896,1776841782730,-500.0,0.00025008,120]
[420976897,1776841782767,-500.0,0.00025008,120]
[420976898,1776841782805,-500.0,0.00025008,120]
[420976899,1776841782842,-500.0,0.00025008,120]
[420976900,1776841782879,-500.0,0.00025008,120]
[420976901,1776841782918,-165.78,0.00025008,120]
[420976902,1776841782956,-500.0,0.00025008,120]
[420976903,1776841783123,-500.0,0.00025008,120]
[420976904,1776841783163,-500.0,0.00025008,120]
[420976905,1776841783203,-603.00074773,0.00025008,120]
[420976906,1776841783243,-500.0,0.00025008,120]
[420976907,1776841783284,-500.0,0.00025008,120]
[420976908,1776841783323,-610.55975882,0.00025008,120]
[420976909,1776841783361,-500.0,0.00025008,120]
[420976910,1776841783399,-504.87713188,0.00025008,120]
[420976911,1776841783436,-500.0,0.00025008,120]
[420976912,1776841783474,-505.60350988,0.00025008,120]
[420976913,1776841783513,-500.0,0.00025008,120]
[420976914,1776841783552,-501.17566055,0.00025008,120]
[420976915,1776841783591,-500.0,0.00025008,120]
[420976916,1776841783630,-501.3369976,0.00025008,120]
[420976917,1776841783669,-500.0,0.00025008,120]
[420976918,1776841783709,-501.08705953,0.00025008,120]
[420976919,1776841783748,-500.0,0.00025008,120]
[420976920,1776841783790,-502.44598554,0.00025008,120]
[420976921,1776841783829,-500.0,0.00025008,120]
[420976922,1776841783868,-503.71398916,0.00025008,120]
[420976923,1776841783908,-500.0,0.00025008,120]
[420976924,1776841783949,-500.0,0.00025008,120]
[420976925,1776841783989,-500.0,0.00025008,120]
[420976926,1776841784028,-500.0,0.00025008,120]
[420976927,1776841784066,-500.0,0.00025008,120]
[420976928,1776841784104,-247.24787518,0.00025008,120]
[420976929,1776841784143,-619.02531009,0.00025008,120]
[420976930,1776841784182,-500.0,0.00025008,120]
[420976931,1776841784221,-500.0,0.00025008,120]
[420976932,1776841784259,-500.0,0.00025008,120]
[420976933,1776841784297,-500.0,0.00025008,120]
[420976934,1776841784335,-500.0,0.00025008,120]
[420976935,1776841784373,-500.0,0.00025008,120]
[420976936,1776841784411,-500.0,0.00025008,120]
[420976937,1776841784448,-500.0,0.00025008,120]
[420976938,1776841784486,-500.0,0.00025008,120]
[420976939,1776841784524,-500.0,0.00025008,120]
[420976940,1776841784562,-500.0,0.00025008,120]
[420976941,1776841784601,-500.0,0.00025008,120]
[420976942,1776841784640,-500.0,0.00025008,120]
[420976943,1776841784679,-461.04341786,0.00025008,120]
[420976944,1776841784718,-500.0,0.00025008,120]
[420976945,1776841784757,-504.70045689,0.00025008,120]
[420976946,1776841784795,-500.0,0.00025008,120]
[420976947,1776841784834,-500.73919071,0.00025008,120]
[420976948,1776841784873,-500.0,0.00025008,120]
[420976949,1776841784912,-262.33866005,0.00025008,120]
[420976950,1776841784951,-500.0,0.00025008,120]
[420976951,1776841784991,-500.0,0.00025008,120]
[420976952,1776841785030,-500.0,0.00025008,120]
[420976953,1776841785069,-248.14620471,0.00025008,120]
[420976954,1776841785112,-500.0,0.00025008,120]
[420976955,1776841785154,-150.03,0.00025008,120]
[420976956,1776841785197,-311.90888152,0.00025008,120]
[420976957,1776841785235,-500.0,0.00025008,120]
[420976958,1776841785274,-500.0,0.00025008,120]
[420976959,1776841785312,-335.83487669,0.00025008,120]
[420976960,1776841785351,-500.0,0.00025008,120]
[420976961,1776841785390,-505.54616865,0.00025008,120]
[420976962,1776841785431,-500.0,0.00025008,120]
[420976963,1776841785471,-500.0,0.00025008,120]
[420976964,1776841785510,-410.6,0.00025008,120]
[420976965,1776841785550,-500.0,0.00025008,120]
[420976966,1776841785588,-612.52,0.00025008,120]
[420976967,1776841785631,-300.81613322,0.00025008,120]
[420976968,1776841785670,-500.0,0.00025008,120]
[420976969,1776841785709,-506.44831388,0.00025008,120]
[420976970,1776841785748,-288.57538613,0.00025008,120]
[420976971,1776841785788,-500.0,0.00025008,120]
[420976972,1776841785828,-500.0,0.00025008,120]
[420976973,1776841785865,-500.0,0.00025008,120]
[420976974,1776841785903,-207.01303398,0.00025008,120]
[420976975,1776841785941,-500.0,0.00025008,120]
[420976976,1776841785981,-500.0,0.00025008,120]
[420976977,1776841786020,-500.0,0.00025008,120]
[420976978,1776841786059,-500.0,0.00025008,120]
[420976979,1776841786098,-500.0,0.00025008,120]
[420976980,1776841786139,-528.42383471,0.00025008,120]
[420976981,1776841786278,-500.0,0.00025008,120]
[420976982,1776841786335,-500.0,0.00025008,120]
[420976983,1776841786374,-500.0,0.00025008,120]
[420976984,1776841786412,-263.07,0.00025008,120]
[420976985,1776841786451,-500.0,0.00025008,120]
[420976986,1776841786490,-500.0,0.00025008,120]
[420976987,1776841786528,-500.0,0.00025008,120]
[420976988,1776841786568,-500.0,0.00025008,120]
[420976989,1776841786607,-500.0,0.00025008,120]
[420976990,1776841786647,-500.0,0.00025008,120]
[420976991,1776841786686,-500.0,0.00025008,120]
[420976992,1776841786725,-500.0,0.00025008,120]
[420976993,1776841786765,-188.75568167,0.00025008,120]
[420976994,1776841786804,-500.0,0.00025008,120]
[420976995,1776841786844,-505.97771205,0.00025008,120]
[420976996,1776841786884,-500.0,0.00025008,120]
[420976997,1776841786924,-500.0,0.00025008,120]
[420976998,1776841786962,-503.71629679,0.00025008,120]
[420976999,1776841787001,-198.33,0.00025008,120]
[420977000,1776841787040,-500.0,0.00025008,120]
[420977001,1776841787078,-504.68657746,0.00025008,120]
[420977002,1776841787116,-500.0,0.00025008,120]
[420977003,1776841787155,-501.10977146,0.00025008,120]
[420977004,1776841787195,-500.0,0.00025008,120]
[420977005,1776841787232,-501.6102399,0.00025008,120]
[420977006,1776841787271,-500.0,0.00025008,120]
[420977007,1776841787309,-500.0,0.00025008,120]
[420977008,1776841787348,-418.59,0.00025008,120]
[420977009,1776841787386,-500.0,0.00025008,120]
[420977010,1776841787426,-500.0,0.00025008,120]
[420977011,1776841787465,-500.0,0.00025008,120]
[420977012,1776841787507,-500.0,0.00025008,120]
[420977013,1776841787544,-500.0,0.00025008,120]
[420977014,1776841787582,-500.0,0.00025008,120]
[420977015,1776841787622,-500.0,0.00025008,120]
[420977016,1776841787664,-500.0,0.00025008,120]
[420977017,1776841787705,-502.77789157,0.00025008,120]
[420977018,1776841787746,-343.46968969,0.00025008,120]
[420977019,1776841787787,-500.0,0.00025008,120]
[420977020,1776841787826,-283.69041553,0.00025008,120]
[420977021,1776841787866,-500.0,0.00025008,120]
[420977022,1776841787906,-502.800881,0.00025008,120]
[420977023,1776841787945,-500.0,0.00025008,120]
[420977024,1776841787985,-500.0,0.00025008,120]
[420977025,1776841788024,-500.0,0.00025008,120]
[420977026,1776841788063,-500.0,0.00025008,120]
[420977027,1776841788102,-500.0,0.00025008,120]
[420977028,1776841788140,-500.0,0.00025008,120]
[420977029,1776841788178,-500.0,0.00025008,120]
[420977030,1776841788215,-500.0,0.00025008,120]
[420977031,1776841788253,-505.12682402,0.00025008,120]
[420977032,1776841788291,-469.08164636,0.00025008,120]
[420977033,1776841788329,-500.0,0.00025008,120]
[420977034,1776841788367,-503.52962975,0.00025008,120]
[420977035,1776841788405,-500.0,0.00025008,120]
[420977036,1776841788442,-500.0,0.00025008,120]
[420977037,1776841788482,-500.0,0.00025008,120]
[420977038,1776841788522,-485.61,0.00025008,120]
[420977039,1776841788561,-500.0,0.00025008,120]
[420977040,1776841788600,-500.0,0.00025008,120]
[420977041,1776841788651,-500.0,0.00025008,120]
[420977042,1776841788692,-289.54,0.00025008,120]
[420977043,1776841788734,-501.61031404,0.00025008,120]
[420977044,1776841788773,-500.0,0.00025008,120]
[420977045,1776841788812,-501.69870986,0.00025008,120]
[420977046,1776841788853,-465.17170852,0.00025008,120]
[420977047,1776841788893,-409.40095986,0.00025008,120]
[420977048,1776841788934,-500.0,0.00025008,120]
[420977049,1776841788975,-503.59214212,0.00025008,120]
[420977050,1776841789015,-500.0,0.00025008,120]
[420977051,1776841789054,-502.22979488,0.00025008,120]
[420977052,1776841789093,-500.0,0.00025008,120]
[420977053,1776841789131,-503.9821184,0.00025008,120]
[420977054,1776841789167,-500.0,0.00025008,120]
[420977055,1776841789204,-501.88335594,0.00025008,120]
[420977056,1776841789243,-500.0,0.00025008,120]
[420977057,1776841789280,-500.0,0.00025008,120]
[420977058,1776841789441,-500.0,0.00025008,120]
[420977059,1776841789480,-357.28871554,0.00025008,120]
[420977060,1776841789518,-500.0,0.00025008,120]
[420977061,1776841789557,-501.2388426,0.00025008,120]
[420977062,1776841789596,-500.0,0.00025008,120]
[420977063,1776841789635,-501.17943265,0.00025008,120]
[420977064,1776841789674,-500.0,0.00025008,120]
[420977065,1776841789713,-501.8710235,0.00025008,120]
[420977066,1776841789752,-500.0,0.00025008,120]
[420977067,1776841789791,-561.08,0.00025008,120]
[420977068,1776841789830,-500.0,0.00025008,120]
[420977069,1776841789869,-500.0,0.00025008,120]
[420977070,1776841789909,-509.01331099,0.00025008,120]
[420977071,1776841789947,-500.0,0.00025008,120]
[420977072,1776841789986,-500.0,0.00025008,120]
[420977073,1776841790026,-500.0,0.00025008,120]
[420977074,1776841790065,-500.0,0.00025008,120]
[420977075,1776841790105,-321.84472592,0.00025008,120]
[420977076,1776841790143,-500.0,0.00025008,120]
[420977077,1776841790181,-501.66431165,0.00025008,120]
[420977078,1776841790219,-500.0,0.00025008,120]
[420977079,1776841790257,-501.52923593,0.00025008,120]
[420977080,1776841790295,-500.0,0.00025008,120]
[420977081,1776841790333,-500.0,0.00025008,120]
[420977082,1776841790371,-500.0,0.00025008,120]
[420977083,1776841790409,-500.0,0.00025008,120]
[420977084,1776841790446,-186.76610542,0.00025008,120]
[420977085,1776841790484,-500.0,0.00025008,120]
[420977086,1776841790523,-500.0,0.00025008,120]
[420977087,1776841790561,-500.0,0.00025008,120]
[420977088,1776841790599,-500.0,0.00025008,120]
[420977089,1776841790638,-500.0,0.00025008,120]
[420977090,1776841790677,-289.90433285,0.00025008,120]
[420977091,1776841790716,-500.0,0.00025008,120]
[420977092,1776841790758,-501.05706483,0.00025008,120]
[420977093,1776841790800,-500.0,0.00025008,120]
[420977094,1776841790837,-500.64325995,0.00025008,120]
[420977095,1776841790876,-500.0,0.00025008,120]
[420977096,1776841790916,-503.81068448,0.00025008,120]
[420977097,1776841790956,-500.0,0.00025008,120]
[420977098,1776841790996,-502.79217593,0.00025008,120]
[420977099,1776841791036,-500.0,0.00025008,120]
[420977100,1776841791074,-627.40898275,0.00025008,120]
[420977101,1776841791112,-500.0,0.00025008,120]
[420977102,1776841791152,-500.0,0.00025008,120]
[420977103,1776841791190,-500.0,0.00025008,120]
[420977104,1776841791229,-431.38030356,0.00025008,120]
[420977105,1776841791268,-500.0,0.00025008,120]
[420977106,1776841791306,-501.49646436,0.00025008,120]
[420977107,1776841791344,-500.0,0.00025008,120]
[420977108,1776841791382,-500.0,0.00025008,120]
[420977109,1776841791419,-506.10728431,0.00025008,120]
[420977110,1776841791456,-500.0,0.00025008,120]
[420977111,1776841791494,-503.86416869,0.00025008,120]
[420977112,1776841791532,-500.0,0.00025008,120]
[420977113,1776841791579,-219.08146,0.00025008,120]
[420977114,1776841791619,-502.82831535,0.00025008,120]
[420977115,1776841791659,-500.0,0.00025008,120]
[420977116,1776841791702,-377.32758833,0.00025008,120]
[420977117,1776841791740,-500.0,0.00025008,120]
[420977118,1776841791779,-505.21527001,0.00025008,120]
[420977119,1776841791818,-500.0,0.00025008,120]
[420977120,1776841791863,-450.55763448,0.00025008,120]
[420977121,1776841791902,-500.0,0.00025008,120]
[420977122,1776841791940,-608.83281585,0.00025008,120]
[420977123,1776841791978,-500.0,0.00025008,120]
[420977124,1776841792016,-500.0,0.00025008,120]
[420977125,1776841792055,-280.92,0.00025008,120]
[420977126,1776841792097,-233.54042246,0.00025008,120]
[420977127,1776841792138,-500.0,0.00025008,120]
[420977128,1776841792179,-501.00471298,0.00025008,120]
[420977129,1776841792221,-500.0,0.00025008,120]
[420977130,1776841792262,-500.0,0.00025008,120]
[420977131,1776841792303,-504.84490968,0.00025008,120]
[420977132,1776841792528,-164.48,0.00025008,120]
[420977133,1776841792577,-500.0,0.00025008,120]
[420977134,1776841792619,-500.0,0.00025008,120]
[420977135,1776841792661,-500.0,0.00025008,120]
[420977136,1776841792707,-500.0,0.00025008,120]
[420977137,1776841792748,-518.03203463,0.00025008,120]
[420977138,1776841792789,-500.0,0.00025008,120]
[420977139,1776841792830,-500.0,0.00025008,120]
[420977140,1776841792873,-500.0,0.00025008,120]
[420977141,1776841792915,-500.0,0.00025008,120]
[420977142,1776841792955,-506.71427385,0.00025008,120]
[420977143,1776841792996,-525.0763046,0.00025008,120]
[420977144,1776841793038,-500.0,0.00025008,120]
[420977145,1776841793078,-389.62383348,0.00025008,120]
[420977146,1776841793121,-278.49244871,0.00025008,120]
[420977147,1776841793162,-500.0,0.00025008,120]
[420977148,1776841793200,-462.05621425,0.00025008,120]
[420977149,1776841793240,-500.0,0.00025008,120]
[420977150,1776841793280,-500.0,0.00025008,120]
[420977151,1776841793319,-171.5160305,0.00025008,120]
[420977152,1776841793359,-572.31900454,0.00025008,120]
[420977153,1776841793397,-500.0,0.00025008,120]
[420977154,1776841793436,-500.0,0.00025008,120]
[420977155,1776841793473,-517.71158664,0.00025008,120]
[420977156,1776841793512,-500.0,0.00025008,120]
[420977157,1776841793550,-393.1,0.00025008,120]
[420977158,1776841793588,-401.36214492,0.00025008,120]
[420977159,1776841793633,-500.0,0.00025008,120]
[420977160,1776841793672,-500.0,0.00025008,120]
[420977161,1776841793711,-508.91,0.00025008,120]
[420977162,1776841793749,-500.0,0.00025008,120]
[420977163,1776841793789,-529.09780133,0.00025008,120]
[420977164,1776841793828,-560.96,0.00025008,120]
[420977165,1776841793868,-500.0,0.00025008,120]
[420977166,1776841793909,-519.54484854,0.00025008,120]
[420977167,1776841793949,-500.0,0.00025008,120]
[420977168,1776841793989,-363.29,0.00025008,120]
[420977169,1776841794028,-500.0,0.00025008,120]
[420977170,1776841794066,-524.92227,0.00025008,120]
[420977171,1776841794104,-500.0,0.00025008,120]
[420977172,1776841794143,-500.0,0.00025008,120]
[420977173,1776841794180,-500.0,0.00025008,120]
[420977174,1776841794218,-500.0,0.00025008,120]
[420977175,1776841794256,-359.44,0.00025008,120]
[420977176,1776841794295,-520.31,0.00025008,120]
[420977177,1776841794333,-500.0,0.00025008,120]
[420977178,1776841794371,-500.0,0.00025008,120]